bitfinex/quotes_SOLUSD_20250929
["timestamp","ask_amount","ask_price","bid_price","bid_amount"]
[1759182761277,3.13384749,214.23,214.22,6.81856922]
[1759182762565,0.7,214.24,214.22,6.81856922]
[1759182764176,0.7,214.27,214.23,0.67]
[1759182764475,3.13356953,214.26,214.25,2.15047101]
[1759182766269,3.13356953,214.27,214.25,6.81791558]
[1759182766567,132.3,214.28,214.25,6.81791558]
[1759182766767,3.13168509,214.27,214.25,6.81791558]
[1759182766970,131.6,214.28,214.25,7.48791558]
[1759182767176,3.13171389,214.27,214.25,7.48791558]
[1759182767783,3.13171389,214.27,214.26,0.67]
[1759182768278,3.83171389,214.31,214.26,5.33708418]
[1759182768476,3.83171389,214.3,214.29,2.15047101]
[1759182768773,0.7,214.3,214.29,2.15047101]
[1759182768962,3.83171389,214.3,214.29,2.15047101]
[1759182769170,0.7,214.3,214.29,2.15047101]
[1759182769476,3.13171389,214.31,214.29,2.15047101]
[1759182769679,3.83171389,214.31,214.29,2.15047101]
[1759182770258,0.7,214.31,214.29,2.15047101]
[1759182770458,3.13171389,214.32,214.29,2.82047101]
[1759182770659,0.7,214.32,214.31,2.15047101]
[1759182771467,132.27,214.34,214.31,2.15047101]
[1759182771683,4.6650168,214.37,214.33,2.15047101]
[1759182771868,3.79707986,214.36,214.33,2.15047101]
[1759182772281,0.67,214.36,214.35,2.15047101]
[1759182773196,3.12707986,214.37,214.35,2.15047101]
[1759182773365,0.67,214.37,214.35,2.15047101]
[1759182773990,3.12707986,214.38,214.35,2.15047101]
[1759182774164,0.67,214.38,214.35,2.15047101]
[1759182774363,0.67,214.38,214.36,3.35561913]
[1759182774980,4.66420974,214.4,214.36,3.35561913]
[1759182775186,0.67,214.38,214.36,3.35561913]
[1759182777081,0.67,214.4,214.36,3.35561913]
[1759182777289,0.67,214.39,214.36,3.35561913]
[1759182777490,0.67,214.39,214.37,3.35561913]
[1759182778691,11.65990392,214.41,214.31,26.0]
[1759182778994,11.65990392,214.41,214.33,3.35561913]
[1759182778995,0.67,214.38,214.33,3.35561913]
[1759182779293,0.67,214.37,214.33,3.35561913]
[1759182779590,0.67,214.36,214.33,3.35561913]
[1759182779894,0.67,214.35,214.33,3.35561913]
[1759182780092,0.67,214.34,214.33,3.35561913]
[1759182780399,5.33548474,214.34,214.33,3.35561913]
[1759182781290,5.33530029,214.35,214.33,3.35561913]
[1759182782195,11.662014,214.38,214.33,3.35561913]
[1759182782396,0.67,214.35,214.33,3.35561913]
[1759182782589,0.67,214.34,214.33,3.35561913]
[1759182784702,4.66548474,214.34,214.33,3.35561913]
[1759182784875,5.33548474,214.34,214.33,3.35561913]
[1759182793688,4.66548474,214.34,214.33,3.35561913]
[1759182796415,0.68,214.35,214.33,3.35561913]
[1759182796613,0.68,214.36,214.33,3.35561913]
[1759182796792,0.68,214.35,214.33,3.35561913]
[1759182798416,5.34544384,214.35,214.33,3.35561913]
[1759182800119,0.68,214.34,214.33,3.35561913]
[1759182800520,5.34548474,214.34,214.33,3.35561913]
[1759182800693,4.66548474,214.34,214.33,3.35561913]
[1759182801623,5.33548474,214.34,214.33,3.35561913]
[1759182801790,4.66548474,214.34,214.33,3.35561913]
[1759182802722,0.67,214.34,214.33,3.35561913]
[1759182803402,4.66526708,214.35,214.33,3.35561913]
[1759182803921,5.33526708,214.35,214.33,3.35561913]
[1759182804624,0.67,214.36,214.33,3.35561913]
[1759182805203,0.67,214.35,214.33,3.35561913]
[1759182805702,0.67,214.34,214.33,3.35561913]
[1759182806113,4.66547509,214.35,214.33,3.35561913]
[1759182806419,5.33547509,214.35,214.33,3.35561913]
[1759182807394,8.45322377,214.35,214.33,3.35561913]
[1759182807594,5.33547509,214.35,214.33,3.35561913]
[1759182807804,8.45322377,214.35,214.33,3.35561913]
[1759182808020,4.66547509,214.35,214.33,3.35561913]
[1759182808215,8.45322377,214.35,214.33,3.35561913]
[1759182808413,4.66547509,214.35,214.33,3.35561913]
[1759182808614,7.78322377,214.35,214.33,4.07561913]
[1759182808816,4.66547509,214.35,214.33,3.35561913]
[1759182809014,8.45322377,214.35,214.33,3.35561913]
[1759182809326,3.11774868,214.34,214.33,3.35561913]
[1759182809823,4.66548474,214.34,214.33,3.35561913]
[1759182810124,7.78323342,214.34,214.33,3.35561913]
[1759182811719,7.78323342,214.34,214.31,36.57561913]
[1759182811918,4.66548474,214.34,214.31,36.57561913]
[1759182812227,3.13328082,214.33,214.31,36.57561913]
[1759182812430,3.13328082,214.33,214.31,33.22]
[1759182812730,3.13328082,214.33,214.32,3.35561913]
[1759182815839,3.13328082,214.33,214.32,4.07561913]
[1759182816141,3.13328082,214.33,214.32,3.35561913]
[1759182822834,3.13328082,214.33,214.32,35.83561913]
[1759182827741,3.13328082,214.33,214.32,36.55561913]
[1759182828240,3.13328082,214.33,214.32,35.83561913]
[1759182832623,3.13328082,214.33,214.32,36.51561913]
[1759182833442,3.13328082,214.33,214.32,35.83561913]
[1759182836248,3.13328082,214.33,214.32,34.62786074]
[1759182837851,3.83328082,214.33,214.32,32.48]
[1759182838034,3.13328082,214.33,214.32,34.62786074]
[1759182840450,3.13328082,214.33,214.32,35.30786074]
[1759182841173,3.13328082,214.33,214.32,34.62786074]
[1759182842151,3.13328082,214.33,214.32,35.30786074]
[1759182842354,3.13328082,214.33,214.32,34.62786074]
[1759182844155,3.13328082,214.33,214.32,35.30786074]
[1759182844556,3.13328082,214.33,214.32,34.62786074]
[1759182845053,3.13328082,214.33,214.32,35.30786074]
[1759182845453,3.13328082,214.33,214.32,34.62786074]
[1759182846859,3.13328082,214.33,214.32,33.16]
[1759182847157,3.13328082,214.33,214.32,35.30786074]
[1759182847658,3.13328082,214.33,214.32,34.62786074]
[1759182848053,3.13328082,214.33,214.32,39.29378085]
[1759182848557,3.13328082,214.33,214.32,39.27378085]
[1759182849548,3.13328082,214.33,214.32,39.95378085]
[1759182849760,3.13328082,214.33,214.32,44.61865051]
[1759182850361,3.13328082,214.33,214.32,41.79078977]
[1759182850562,3.13328082,214.33,214.32,44.61865051]
[1759182853761,3.13328082,214.33,214.32,43.93865051]
[1759182859762,0.7,214.35,214.32,43.93865051]
[1759182859946,3.13566979,214.34,214.32,43.93865051]
[1759182860147,0.7,214.35,214.32,43.93865051]
[1759182860544,3.13572188,214.34,214.32,43.93865051]
[1759182860759,0.7,214.35,214.32,43.93865051]
[1759182860962,3.13602152,214.34,214.32,39.27378085]
[1759182861272,0.7,214.35,214.32,48.60352017]
[1759182861469,3.13595298,214.34,214.32,39.27378085]
[1759182861657,0.7,214.35,214.32,39.27378085]
[1759182861968,3.13659304,214.34,214.32,39.27378085]
[1759182862154,0.7,214.35,214.32,39.27378085]
[1759182862360,3.1366465,214.34,214.32,53.3039457]
[1759182862650,0.7,214.35,214.32,53.3039457]
[1759182862863,3.13661754,214.34,214.32,39.27378085]
[1759182863066,0.7,214.35,214.32,48.60352017]
[1759182863368,0.7,214.35,214.34,2.14786074]
[1759182863569,0.66,214.34,214.32,9.32973932]
[1759182863866,0.66,214.34,214.33,32.46]
[1759182864164,3.79650475,214.34,214.33,32.46]
[1759182864863,3.79650475,214.34,214.33,34.60786074]
[1759182871392,0.66,214.34,214.33,34.60786074]
[1759182873080,3.79598066,214.34,214.33,34.60786074]
[1759182873278,3.13598066,214.34,214.33,34.60786074]
[1759182873882,0.66,214.35,214.33,34.60786074]
[1759182876086,0.66,214.35,214.33,39.27356303]
[1759182876285,0.66,214.36,214.33,39.27356303]
[1759182876588,4.66465811,214.38,214.35,2.14786074]
[1759182876782,3.13541383,214.37,214.36,32.46]
[1759182876962,3.79541383,214.37,214.36,32.46]
[1759182878978,3.79541383,214.37,214.36,46.76352458]
[1759182883072,3.79541383,214.37,214.36,32.46]
[1759182883796,3.79541383,214.37,214.36,46.61071813]
[1759182886774,3.13541383,214.37,214.36,46.61071813]
[1759182886978,0.66,214.39,214.36,46.61071813]
[1759182887195,3.13331724,214.38,214.36,47.33071813]
[1759182887379,0.66,214.39,214.36,47.33071813]
[1759182887579,3.13299017,214.38,214.36,47.33071813]
[1759182887785,0.66,214.39,214.36,47.33071813]
[1759182887987,3.13299017,214.38,214.36,47.33071813]
[1759182888182,150.95386197,214.4,214.36,47.33071813]
[1759182888387,3.13269741,214.39,214.36,47.33071813]
[1759182888686,150.95386197,214.4,214.36,51.99574571]
[1759182888687,3.13269741,214.38,214.36,51.99574571]
[1759182889001,136.92435324,214.4,214.37,0.72]
[1759182889187,3.13269844,214.39,214.38,32.46]
[1759182893899,3.85269844,214.39,214.38,32.46]
[1759182895111,3.13269844,214.39,214.38,32.46]
[1759182895404,3.85269844,214.39,214.38,32.46]
[1759182895907,3.13269844,214.39,214.38,32.46]
[1759182896101,3.85269844,214.39,214.38,32.46]
[1759182896309,3.13269844,214.39,214.38,32.46]
[1759182903911,3.13269844,214.39,214.38,33.18]
[1759182904096,14.02819667,214.41,214.38,37.84461423]
[1759182904420,14.02819667,214.41,214.39,4.07521714]
[1759182904724,14.02819667,214.41,214.4,32.5]
[1759182905108,0.72,214.43,214.4,32.5]
[1759182905293,3.85454269,214.46,214.41,0.72]
[1759182905491,3.13454269,214.46,214.42,36.57521714]
[1759182905693,3.13454269,214.46,214.43,0.72]
[1759182905913,0.72,214.47,214.44,32.5]
[1759182906121,3.85454269,214.47,214.44,32.5]
[1759182906294,0.72,214.47,214.44,32.5]
[1759182906495,17.1581491,214.48,214.44,33.22]
[1759182906695,3.85454269,214.48,214.44,33.22]
[1759182907396,18.68600095,214.49,214.44,33.22]
[1759182907602,0.72,214.48,214.44,33.22]
[1759182908400,0.72,214.48,214.44,32.5]
[1759182908602,0.72,214.48,214.44,33.22]
[1759182909409,8.51657294,214.5,214.45,0.72]
[1759182909605,8.51657294,214.5,214.46,32.5]
[1759182909904,0.72,214.49,214.46,32.5]
[1759182910307,5.38203025,214.5,214.46,33.22]
[1759182911906,5.38203025,214.5,214.47,0.72]
[1759182911907,0.72,214.5,214.47,0.72]
[1759182912222,0.72,214.5,214.48,32.48]
[1759182912419,4.66179075,214.51,214.48,32.48]
[1759182912597,5.38179075,214.51,214.48,33.2]
[1759182913007,5.38157001,214.52,214.48,33.2]
[1759182913410,0.72,214.51,214.48,33.2]
[1759182913611,5.3813873,214.53,214.49,0.72]
[1759182914008,4.6613873,214.53,214.5,0.72]
[1759182914614,5.3813873,214.53,214.5,0.72]
[1759182914920,5.3813873,214.53,214.5,33.2]
[1759182915435,0.2,214.54,214.5,33.17]
[1759182915611,0.92,214.54,214.5,33.17]
[1759182915810,0.72,214.53,214.5,33.17]
[1759182916829,5.58122856,214.54,214.5,33.17]
[1759182917133,4.86122856,214.54,214.5,33.17]
[1759182917321,0.72,214.53,214.5,33.17]
[1759182917635,0.2,214.54,214.51,0.69]
[1759182917835,0.92,214.54,214.51,0.69]
[1759182920739,0.2,214.54,214.51,0.69]
[1759182920945,0.92,214.54,214.51,0.69]
[1759182923615,0.2,214.54,214.52,0.68]
[1759182923812,0.2,214.54,214.5,37.14200413]
[1759182924013,0.2,214.54,214.51,0.68]
[1759182926634,0.2,214.54,214.5,32.48]
[1759182926844,0.2,214.54,214.51,0.68]
[1759182927410,0.2,214.54,214.52,0.68]
[1759182927619,0.2,214.54,214.5,4.66193199]
[1759182927823,0.9,214.54,214.51,32.44]
[1759182928048,0.9,214.54,214.51,33.12]
[1759182928624,0.2,214.54,214.51,37.78171924]
[1759182929334,0.9,214.54,214.51,37.10171924]
[1759182929850,0.9,214.54,214.51,37.78171924]
[1759182930249,0.2,214.54,214.52,0.68]
[1759182930450,0.2,214.54,214.51,37.10171924]
[1759182930751,0.2,214.54,214.52,0.68]
[1759182937552,0.2,214.54,214.51,37.10171726]
[1759182937735,0.7,214.53,214.51,37.10171726]
[1759182938253,0.2,214.54,214.51,32.44]
[1759182938441,0.7,214.52,214.51,32.44]
[1759182939231,0.7,214.52,214.51,32.42]
[1759182940552,5.36135673,214.53,214.51,32.42]
[1759182941260,0.7,214.52,214.47,32.42]
[1759182941553,0.7,214.51,214.47,32.42]
[1759182941849,0.7,214.5,214.47,32.42]
[1759182942159,0.7,214.49,214.47,32.42]
[1759182942451,0.7,214.48,214.47,32.42]
[1759182946762,4.66200466,214.5,214.47,32.42]
[1759182946971,0.7,214.49,214.47,32.42]
[1759182949160,5.36233053,214.49,214.47,32.42]
[1759182951151,4.66233053,214.49,214.47,32.42]
[1759182952165,5.34233053,214.49,214.47,32.42]
[1759182953165,5.34200466,214.5,214.47,32.42]
[1759182953343,0.68,214.51,214.47,33.13]
[1759182953965,7.77447025,214.52,214.47,33.13]
[1759182954265,0.68,214.5,214.47,33.13]
[1759182954864,0.68,214.5,214.47,32.42]
[1759182955366,5.34209312,214.5,214.47,33.13]
[1759182955869,132.28,214.53,214.48,0.71]
[1759182957165,136.94138453,214.53,214.47,40.43783113]
[1759182957353,136.94138453,214.53,214.49,0.71]
[1759182958368,4.8609967,214.55,214.49,5.37215179]
[1759182958567,4.8609967,214.55,214.49,4.66215179]
[1759182958759,4.8609967,214.55,214.5,33.13]
[1759182958959,5.5409967,214.55,214.5,33.13]
[1759182959158,5.5409967,214.55,214.51,0.71]
[1759182965574,4.8609967,214.55,214.51,0.71]
[1759182965779,0.88,214.54,214.51,0.71]
[1759182966175,0.2,214.54,214.5,37.08191283]
[1759182966364,0.2,214.54,214.51,0.71]
[1759182967066,0.2,214.54,214.52,0.71]
[1759182968875,0.2,214.54,214.51,0.71]
[1759182969256,0.2,214.54,214.52,0.71]
[1759182970474,0.2,214.54,214.51,0.71]
[1759182972076,0.88,214.54,214.51,0.71]
[1759182972376,0.2,214.54,214.51,0.71]
[1759182973479,0.2,214.54,214.5,37.08191283]
[1759182973680,0.2,214.54,214.51,5.37177787]
[1759182974180,0.2,214.54,214.52,0.71]
[1759182974383,0.2,214.54,214.5,37.08195432]
[1759182974581,0.2,214.54,214.51,0.71]
[1759182975176,0.2,214.54,214.52,0.71]
[1759182975479,0.2,214.54,214.51,0.71]
[1759182976577,0.2,214.54,214.5,37.08195432]
[1759182976781,0.2,214.54,214.51,0.71]
[1759182979480,0.2,214.54,214.52,0.71]
[1759182980186,0.2,214.54,214.53,32.42]
[1759182980383,0.2,214.54,214.53,33.13]
[1759182981586,0.2,214.54,214.53,32.42]
[1759182983679,0.2,214.54,214.53,33.13]
[1759182989584,0.2,214.54,214.53,32.42]
[1759182990288,0.2,214.54,214.53,33.13]
[1759182991193,0.2,214.54,214.53,37.79135272]
[1759182991366,0.91,214.54,214.53,32.42]
[1759182992292,0.2,214.54,214.53,32.42]
[1759182993486,0.2,214.54,214.52,4.66156207]
[1759182993692,0.2,214.54,214.53,32.42]
[1759182996297,0.2,214.54,214.53,37.79135272]
[1759182996601,0.2,214.54,214.53,37.08135272]
[1759183001090,0.2,214.54,214.53,37.79135272]
[1759183001492,0.2,214.54,214.53,37.08135272]
[1759183002997,0.2,214.54,214.53,37.79135272]
[1759183010506,0.2,214.54,214.53,65.65994403]
[1759183010899,0.2,214.55,214.53,65.65994403]
[1759183011109,0.2,214.55,214.54,2.85450454]
[1759183011317,0.2,214.56,214.55,26.0]
[1759183011504,0.2,214.56,214.55,59.08]
[1759183012208,0.2,214.56,214.55,60.94841675]
[1759183012390,0.2,214.56,214.55,65.60933495]
[1759183014507,0.2,214.56,214.55,63.7409182]
[1759183015208,0.2,214.56,214.55,65.60933495]
[1759183018301,0.2,214.56,214.55,68.95770059]
[1759183020418,0.2,214.57,214.55,68.95770059]
[1759183020604,0.2,214.57,214.56,0.68]
[1759183021710,0.2,214.57,214.56,2.54832948]
[1759183022021,0.2,214.57,214.56,7.20903044]
[1759183023320,0.2,214.57,214.56,10.55739608]
[1759183033730,0.2,214.57,214.56,7.20903044]
[1759183038042,0.2,214.57,214.56,6.52903044]
[1759183039641,0.91,214.57,214.56,6.52903044]
[1759183039826,0.2,214.57,214.56,6.52903044]
[1759183048446,0.2,214.57,214.56,7.21903044]
[1759183048833,0.2,214.57,214.56,6.52903044]
[1759183050035,0.2,214.57,214.56,38.90903044]
[1759183050623,0.2,214.57,214.56,39.59903044]
[1759183050830,0.2,214.57,214.56,38.90903044]
[1759183058346,0.2,214.57,214.56,6.52903044]
[1759183058646,0.2,214.57,214.56,38.90903044]
[1759183062955,0.91,214.59,214.58,26.0]
[1759183063145,0.91,214.59,214.58,58.38]
[1759183063458,0.2,214.59,214.58,58.38]
[1759183063639,0.2,214.59,214.58,60.24815496]
[1759183064543,0.2,214.59,214.58,64.90842152]
[1759183075176,0.2,214.59,214.58,33.22842152]
[1759183075347,0.2,214.59,214.58,65.58842152]
[1759183075552,0.2,214.59,214.58,64.88842152]
[1759183075860,0.2,214.59,214.58,65.58842152]
[1759183076465,0.2,214.59,214.58,64.88842152]
[1759183077267,0.86,214.61,214.58,90.13468194]
[1759183077455,0.2,214.61,214.58,90.83468194]
[1759183077762,0.66,214.62,214.59,0.7]
[1759183077966,0.66,214.62,214.6,32.36]
[1759183078570,0.66,214.62,214.61,4.65961511]
[1759183078866,0.66,214.62,214.61,7.80318517]
[1759183079058,0.66,214.62,214.61,40.16318517]
[1759183080252,0.2,214.63,214.61,40.16318517]
[1759183080450,0.86,214.63,214.61,40.16318517]
[1759183080652,0.86,214.63,214.61,37.01961511]
[1759183080964,0.86,214.63,214.62,4.65793049]
[1759183081467,0.86,214.63,214.62,9.31732849]
[1759183083371,0.86,214.63,214.62,23.48450852]
[1759183085670,0.2,214.63,214.62,23.48450852]
[1759183085858,0.66,214.65,214.62,35.13300353]
[1759183086169,0.66,214.65,214.63,32.36]
[1759183086670,0.66,214.65,214.63,37.01765084]
[1759183086867,0.66,214.65,214.63,32.36]
[1759183087174,0.66,214.65,214.64,12.45906222]
[1759183088462,0.66,214.66,214.64,24.10647183]
[1759183088658,0.66,214.66,214.65,32.36]
[1759183089376,0.2,214.7,214.65,35.50282655]
[1759183089569,0.66,214.69,214.65,35.50282655]
[1759183089875,0.66,214.68,214.66,4.65852976]
[1759183090178,0.2,214.7,214.67,32.36]
[1759183090660,0.66,214.69,214.67,32.36]
[1759183090858,0.66,214.68,214.67,32.36]
[1759183091865,0.66,214.68,214.67,37.01831275]
[1759183093477,0.86,214.7,214.67,37.01831275]
[1759183093659,0.66,214.69,214.67,37.01831275]
[1759183094056,0.66,214.68,214.67,37.01831275]
[1759183096462,0.66,214.68,214.67,38.88576997]
[1759183098684,0.2,214.7,214.67,38.88576997]
[1759183098986,0.71,214.69,214.67,38.88576997]
[1759183099184,0.71,214.69,214.67,37.01831275]
[1759183099483,0.71,214.69,214.68,1.86745723]
[1759183101278,0.71,214.69,214.68,6.525553]
[1759183102172,0.71,214.69,214.68,38.865553]
[1759183107791,0.91,214.7,214.68,38.865553]
[1759183107982,0.71,214.69,214.68,38.865553]
[1759183108181,0.91,214.7,214.68,38.865553]
[1759183108379,0.71,214.69,214.68,36.99809577]
[1759183108578,0.71,214.69,214.68,32.34]
[1759183108994,0.71,214.69,214.68,1.86745722]
[1759183109198,0.71,214.69,214.68,32.34]
[1759183109569,0.71,214.69,214.67,32.34]
[1759183109770,0.71,214.68,214.67,32.34]
[1759183110376,5.36809577,214.68,214.67,32.34]
[1759183112877,5.36809577,214.68,214.62,14.16718003]
[1759183113190,5.36809577,214.68,214.6,4.65981719]
[1759183113191,0.71,214.67,214.63,32.34]
[1759183113379,18.66729515,214.68,214.64,32.34]
[1759183113581,0.71,214.67,214.64,32.34]
[1759183113780,0.71,214.66,214.64,32.34]
[1759183113987,0.71,214.65,214.64,32.34]
[1759183117287,5.36874679,214.65,214.63,32.34]
[1759183117594,0.71,214.64,214.63,32.34]
[1759183118380,5.36896384,214.64,214.63,32.34]
[1759183118694,5.36896384,214.64,214.58,30.66018938]
[1759183118914,0.71,214.63,214.58,26.0]
[1759183119195,0.71,214.62,214.59,32.34]
[1759183119396,0.71,214.61,214.59,32.34]
[1759183119701,0.71,214.6,214.59,32.34]
[1759183120198,0.71,214.6,214.55,26.0]
[1759183120407,0.71,214.59,214.57,32.34]
[1759183120583,0.71,214.58,214.57,32.34]
[1759183124702,4.6596288,214.61,214.57,32.34]
[1759183124703,0.71,214.59,214.57,46.20096597]
[1759183124889,0.71,214.58,214.57,46.20096597]
[1759183127988,18.66882818,214.61,214.57,46.20096597]
[1759183127989,0.71,214.59,214.57,46.20096597]
[1759183131299,0.7,214.59,214.57,46.20096597]
[1759183132193,14.01508958,214.62,214.57,46.20096597]
[1759183132388,0.7,214.59,214.57,46.20096597]
[1759183135585,19.37478343,214.61,214.57,46.89096597]
[1759183135806,0.7,214.6,214.57,46.20096597]
[1759183137008,0.7,214.59,214.57,46.20096597]
[1759183138103,4.65987709,214.6,214.57,46.20096597]
[1759183138490,0.7,214.59,214.57,46.20096597]
[1759183140405,5.35987709,214.6,214.57,46.20096597]
[1759183143222,4.65987709,214.6,214.57,46.20096597]
[1759183143423,5.35987709,214.6,214.57,46.89096597]
[1759183143917,4.65987709,214.6,214.57,46.89096597]
[1759183144119,5.35987709,214.6,214.57,46.89096597]
[1759183159038,4.65987709,214.6,214.57,46.89096597]
[1759183161427,7.80110621,214.6,214.57,46.89096597]
[1759183162233,4.65987709,214.6,214.57,46.89096597]
[1759183163354,3.1483011,214.59,214.57,46.89096597]
[1759183163533,4.65987709,214.6,214.57,46.89096597]
[1759183163840,3.14830152,214.59,214.57,46.89096597]
[1759183164020,4.65987709,214.6,214.57,46.89096597]
[1759183164222,3.14830152,214.59,214.57,46.89096597]
[1759183164422,4.65987709,214.6,214.57,46.89096597]
[1759183164625,3.14887042,214.59,214.57,46.89096597]
[1759183164830,4.65987709,214.6,214.57,46.89096597]
[1759183165034,3.14887042,214.59,214.57,46.89096597]
[1759183165244,4.65987709,214.6,214.57,46.89096597]
[1759183165430,3.14885427,214.59,214.57,46.89096597]
[1759183165637,5.37987709,214.6,214.57,46.89096597]
[1759183165943,3.1487697,214.59,214.57,46.89096597]
[1759183166144,4.65987709,214.6,214.57,46.89096597]
[1759183166333,3.14877527,214.59,214.57,46.89096597]
[1759183166539,0.72,214.63,214.57,46.20096597]
[1759183166735,3.86876622,214.62,214.58,0.66]
[1759183167044,3.14876622,214.61,214.59,32.34]
[1759183167243,3.14876622,214.6,214.59,32.34]
[1759183180760,3.14876622,214.6,214.59,33.0]
[1759183181054,3.14782753,214.63,214.59,33.0]
[1759183181245,3.14639454,214.67,214.6,0.66]
[1759183181445,3.14639454,214.66,214.61,32.34]
[1759183181747,3.14639454,214.65,214.62,0.66]
[1759183182060,3.14639454,214.64,214.63,32.34]
[1759183182260,3.14639454,214.64,214.63,33.0]
[1759183183236,3.14639454,214.66,214.63,33.0]
[1759183183440,3.14639454,214.65,214.63,33.0]
[1759183183743,3.14469107,214.64,214.63,33.0]
[1759183183945,3.14469107,214.65,214.63,33.0]
[1759183184263,3.14469107,214.64,214.63,32.34]
[1759183184463,3.14469107,214.65,214.63,32.34]
[1759183184666,3.14469107,214.64,214.63,33.0]
[1759183184845,3.14469107,214.65,214.63,33.0]
[1759183185046,3.14469107,214.64,214.63,33.0]
[1759183185359,3.14469107,214.65,214.63,33.0]
[1759183185556,5.37832827,214.67,214.64,0.66]
[1759183185858,3.1436454,214.66,214.65,32.34]
[1759183188755,3.1436454,214.67,214.65,32.34]
[1759183188972,0.72,214.66,214.6,0.66]
[1759183189168,20.08868834,214.65,214.57,13.86096597]
[1759183189336,3.8636454,214.64,214.59,32.34]
[1759183189534,3.8636454,214.63,214.59,32.34]
[1759183189738,16.94504294,214.65,214.59,32.34]
[1759183189739,3.8636454,214.62,214.59,32.34]
[1759183189930,8.52343382,214.61,214.59,32.34]
[1759183190134,0.72,214.6,214.59,32.34]
[1759183198181,3.1436454,214.61,214.59,32.34]
[1759183198386,3.8636454,214.61,214.59,32.34]
[1759183200565,3.1436454,214.62,214.59,32.34]
[1759183200766,3.8636454,214.62,214.59,32.34]
[1759183201682,0.72,214.62,214.59,32.34]
[1759183201878,3.8636454,214.62,214.59,32.34]
[1759183202067,0.72,214.62,214.59,32.34]
[1759183202273,3.8636454,214.62,214.59,32.34]
[1759183202473,0.72,214.62,214.59,32.34]
[1759183202672,3.1436454,214.62,214.6,0.71]
[1759183203085,3.1436454,214.62,214.59,32.34]
[1759183203259,3.1436454,214.62,214.59,33.05]
[1759183203596,3.1436454,214.63,214.59,36.99993276]
[1759183203756,0.72,214.69,214.6,0.71]
[1759183203955,3.14231846,214.68,214.61,32.34]
[1759183204206,3.14231846,214.67,214.62,0.71]
[1759183204490,3.14231846,214.68,214.63,32.34]
[1759183204699,3.14231846,214.69,214.64,17.01637345]
[1759183204862,3.14231846,214.69,214.65,33.05]
[1759183205060,3.14231846,214.69,214.66,0.71]
[1759183205280,0.2,214.7,214.67,32.34]
[1759183205481,0.2,214.7,214.68,0.71]
[1759183205692,0.2,214.7,214.69,32.34]
[1759183205897,0.2,214.7,214.69,33.05]
[1759183206798,0.2,214.7,214.69,32.34]
[1759183208599,5.57766185,214.7,214.69,32.34]
[1759183210480,5.57766185,214.7,214.67,32.34]
[1759183210802,0.72,214.69,214.61,0.71]
[1759183211005,0.72,214.69,214.62,32.34]
[1759183211313,0.72,214.68,214.62,32.34]
[1759183211602,0.72,214.67,214.62,32.34]
[1759183211811,0.72,214.66,214.62,32.34]
[1759183212195,0.72,214.66,214.62,33.05]
[1759183212497,0.72,214.65,214.62,32.34]
[1759183215882,0.66,214.65,214.62,32.34]
[1759183216902,3.14231846,214.69,214.62,32.34]
[1759183216903,4.65918091,214.63,214.62,32.34]
[1759183217107,5.31918091,214.63,214.6,32.34]
[1759183217280,0.66,214.63,214.59,0.7]
[1759183218707,4.65852976,214.66,214.59,0.7]
[1759183218883,0.66,214.63,214.59,0.7]
[1759183219084,0.66,214.63,214.58,37.00026534]
[1759183219285,0.66,214.63,214.59,0.7]
[1759183220005,4.65911782,214.64,214.59,0.7]
[1759183220188,0.66,214.63,214.59,0.7]